[Event "January 2 Late 2024"]
[Site "https://www.chess.com"]
[Date "2024.01.02"]
[Round "5"]
[White "Matlakov, Maxim"]
[Black "CamillaEffect"]
[Result "1-0"]
[Board "16"]
[TimeControl "180+1"]
[WhiteFideId "4168003"]
[WhiteElo "2963"]
[BlackElo "2641"]
[WhiteTeam "RUS"]
[WhiteClock "0:00:06"]
[BlackClock "0:00:03"]

1. d4 {[%clk 0:03:00]}  d5 {[%clk 0:02:59]} 2. Nf3 {[%clk 0:03:00]}  Nf6 {[%clk 0:02:56]} 3. Bg5 {[%clk 0:03:00]}  Ne4 {[%clk 0:02:45]} 4. Bh4 {[%clk 0:03:00]}  Bf5 {[%clk 0:02:44]} 5. e3 {[%clk 0:02:59]}  c6 {[%clk 0:02:43]} 6. Nbd2 {[%clk 0:02:51]}  Nd7 {[%clk 0:02:36]} 7. Be2 {[%clk 0:02:51]}  Qb6 {[%clk 0:02:33]} 8. O-O {[%clk 0:02:50]}  Nxd2 {[%clk 0:02:16]} 9. Qxd2 {[%clk 0:02:50]}  Qxb2 {[%clk 0:02:16]} 10. Rab1 {[%clk 0:02:42]}  Qxc2 {[%clk 0:02:15]} 11. Qxc2 {[%clk 0:02:42]}  Bxc2 {[%clk 0:02:16]} 12. Rxb7 {[%clk 0:02:42]}  e6 {[%clk 0:02:01]} 13. Rc1 {[%clk 0:02:05]}  Ba4 {[%clk 0:02:01]} 14. Ng5 {[%clk 0:01:42]}  c5 {[%clk 0:01:25]} 15. dxc5 {[%clk 0:01:36]}  Nxc5 {[%clk 0:01:21]} 16. Rc7 {[%clk 0:01:00]}  f6 {[%clk 0:00:42]} 17. Bh5+ {[%clk 0:00:41]}  g6 {[%clk 0:00:21]} 18. Nxh7 {[%clk 0:00:41]}  Be7 {[%clk 0:00:05]} 19. Bxg6+ {[%clk 0:00:36]}  Kd8 {[%clk 0:00:05]} 20. R7xc5 {[%clk 0:00:33]}  Bxc5 {[%clk 0:00:05]} 21. Bxf6+ {[%clk 0:00:30]}  Kd7 {[%clk 0:00:06]} 22. Bxh8 {[%clk 0:00:30]}  Ba3 {[%clk 0:00:06]} 23. Nf6+ {[%clk 0:00:17]}  Kd6 {[%clk 0:00:07]} 24. Rb1 {[%clk 0:00:11]}  Rxh8 {[%clk 0:00:06]} 25. Bd3 {[%clk 0:00:09]}  Rc8 {[%clk 0:00:05]} 26. h4 {[%clk 0:00:09]}  Ke7 {[%clk 0:00:03]} 27. Ng4 {[%clk 0:00:07]}  Rc1+ {[%clk 0:00:03]} 28. Rxc1 {[%clk 0:00:07]}  Bxc1 {[%clk 0:00:04]} 29. Ne5 {[%clk 0:00:07]}  Bb2 {[%clk 0:00:04]} 30. f4 {[%clk 0:00:07]}  Kf6 {[%clk 0:00:04]} 31. Ng4+ {[%clk 0:00:05]}  Kg7 {[%clk 0:00:04]} 32. Kf2 {[%clk 0:00:06]}  Bd1 {[%clk 0:00:04]} 33. Ne5 {[%clk 0:00:06]}  Kf6 {[%clk 0:00:04]} 34. Be2 {[%clk 0:00:04]}  Ba4 {[%clk 0:00:03]} 35. g4 {[%clk 0:00:04]}  Bxe5 {[%clk 0:00:02]} 36. g5+ {[%clk 0:00:05]}  Kf5 {[%clk 0:00:02]} 37. Bd3+ {[%clk 0:00:05]}  Kg4 {[%clk 0:00:03]} 38. fxe5 {[%clk 0:00:04]}  Kxh4 {[%clk 0:00:03]} 39. g6 {[%clk 0:00:05]}  Be8 {[%clk 0:00:04]} 40. g7 {[%clk 0:00:05]}  Bf7 {[%clk 0:00:05]} 41. Bh7 {[%clk 0:00:05]}  Kg5 {[%clk 0:00:04]} 42. Kf3 {[%clk 0:00:04]}  a5 {[%clk 0:00:03]} 43. a4 {[%clk 0:00:05]}  Kh6 {[%clk 0:00:03]} 44. g8=Q {[%clk 0:00:04]}  Bxg8 {[%clk 0:00:03]} 45. Bxg8 {[%clk 0:00:05]}  Kg6 {[%clk 0:00:03]} 46. Bxe6 {[%clk 0:00:06]} 1-0

[Event "January 2 Late 2024"]
[Site "https://www.chess.com"]
[Date "2024.01.02"]
[Round "5"]
[White "Alekseenko, Kirill"]
[Black "Gubajdullin, Alexei"]
[Result "1-0"]
[Board "17"]
[TimeControl "180+1"]
[WhiteFideId "4135539"]
[BlackFideId "4141202"]
[WhiteElo "2934"]
[BlackElo "2623"]
[WhiteTeam "AUT"]
[BlackTeam "RUS"]
[WhiteClock "0:00:16"]
[BlackClock "0:00:00"]

1. e4 {[%clk 0:03:00]}  g6 {[%clk 0:02:58]} 2. d4 {[%clk 0:02:59]}  Bg7 {[%clk 0:02:58]} 3. Nf3 {[%clk 0:02:59]}  d6 {[%clk 0:02:58]} 4. Nc3 {[%clk 0:02:59]}  a6 {[%clk 0:02:58]} 5. Be3 {[%clk 0:02:56]}  Nd7 {[%clk 0:02:58]} 6. Bd3 {[%clk 0:02:55]}  b5 {[%clk 0:02:58]} 7. a4 {[%clk 0:02:56]}  b4 {[%clk 0:02:58]} 8. Ne2 {[%clk 0:02:56]}  c5 {[%clk 0:02:55]} 9. c3 {[%clk 0:02:56]}  Ngf6 {[%clk 0:02:43]} 10. O-O {[%clk 0:02:54]}  bxc3 {[%clk 0:02:25]} 11. bxc3 {[%clk 0:02:53]}  O-O {[%clk 0:02:25]} 12. Ng3 {[%clk 0:02:49]}  Qa5 {[%clk 0:02:07]} 13. Bd2 {[%clk 0:02:45]}  Qc7 {[%clk 0:02:02]} 14. a5 {[%clk 0:02:44]}  Bb7 {[%clk 0:02:01]} 15. Re1 {[%clk 0:02:42]}  e5 {[%clk 0:01:54]} 16. dxe5 {[%clk 0:02:39]}  Nxe5 {[%clk 0:01:42]} 17. Nxe5 {[%clk 0:02:39]}  dxe5 {[%clk 0:01:42]} 18. Qe2 {[%clk 0:02:39]}  h5 {[%clk 0:01:29]} 19. Bg5 {[%clk 0:02:24]}  Nh7 {[%clk 0:01:28]} 20. Be3 {[%clk 0:02:24]}  h4 {[%clk 0:01:25]} 21. Nf1 {[%clk 0:02:24]}  h3 {[%clk 0:01:23]} 22. g3 {[%clk 0:02:21]}  f5 {[%clk 0:01:23]} 23. Rab1 {[%clk 0:02:02]}  f4 {[%clk 0:01:10]} 24. Bxc5 {[%clk 0:01:47]}  Qxc5 {[%clk 0:01:06]} 25. Rxb7 {[%clk 0:01:43]}  Ng5 {[%clk 0:01:01]} 26. Nd2 {[%clk 0:01:09]}  fxg3 {[%clk 0:00:20]} 27. hxg3 {[%clk 0:01:10]}  Rad8 {[%clk 0:00:16]} 28. Bc4+ {[%clk 0:00:33]}  Kh8 {[%clk 0:00:16]} 29. Nb3 {[%clk 0:00:33]}  Qc6 {[%clk 0:00:13]} 30. Rb6 {[%clk 0:00:28]}  Qc7 {[%clk 0:00:09]} 31. Kh1 {[%clk 0:00:23]}  Nf3 {[%clk 0:00:08]} 32. Qf1 {[%clk 0:00:17]}  Qc8 {[%clk 0:00:07]} 33. Re3 {[%clk 0:00:16]}  Qg4 {[%clk 0:00:00]} 34. Be2 {[%clk 0:00:16]} 1-0

[Event "January 2 Late 2024"]
[Site "https://www.chess.com"]
[Date "2024.01.02"]
[Round "5"]
[White "Roberson, Peter T"]
[Black "Mahdavi, Reza"]
[Result "0-1"]
[Board "18"]
[TimeControl "180+1"]
[WhiteFideId "412384"]
[BlackFideId "12595926"]
[WhiteElo "2586"]
[BlackElo "2862"]
[WhiteTeam "ENG"]
[BlackTeam "IRI"]
[WhiteClock "0:00:32"]
[BlackClock "0:00:34"]

1. b3 {[%clk 0:03:00]}  Nf6 {[%clk 0:02:50]} 2. Bb2 {[%clk 0:03:01]}  e6 {[%clk 0:02:49]} 3. e3 {[%clk 0:02:55]}  c5 {[%clk 0:02:44]} 4. Nf3 {[%clk 0:02:55]}  b6 {[%clk 0:02:44]} 5. d4 {[%clk 0:02:53]}  Bb7 {[%clk 0:02:45]} 6. Bd3 {[%clk 0:02:53]}  d5 {[%clk 0:02:35]} 7. Nbd2 {[%clk 0:02:53]}  Nbd7 {[%clk 0:02:35]} 8. Ne5 {[%clk 0:02:52]}  g6 {[%clk 0:02:27]} 9. f4 {[%clk 0:02:40]}  Bg7 {[%clk 0:02:27]} 10. Qf3 {[%clk 0:02:41]}  Qc7 {[%clk 0:02:21]} 11. O-O-O {[%clk 0:02:39]}  a5 {[%clk 0:02:18]} 12. Bb5 {[%clk 0:02:36]}  O-O {[%clk 0:02:08]} 13. h4 {[%clk 0:02:22]}  Rfc8 {[%clk 0:01:56]} 14. dxc5 {[%clk 0:01:49]}  Qxc5 {[%clk 0:01:51]} 15. Bd3 {[%clk 0:01:34]}  Ba6 {[%clk 0:01:43]} 16. Nxd7 {[%clk 0:01:16]}  Nxd7 {[%clk 0:01:44]} 17. c4 {[%clk 0:01:15]}  Bxb2+ {[%clk 0:01:38]} 18. Kxb2 {[%clk 0:01:15]}  a4 {[%clk 0:01:39]} 19. h5 {[%clk 0:01:09]}  axb3 {[%clk 0:00:39]} 20. hxg6 {[%clk 0:01:00]}  hxg6 {[%clk 0:00:39]} 21. Nxb3 {[%clk 0:00:50]}  Qf8 {[%clk 0:00:35]} 22. cxd5 {[%clk 0:00:34]}  Bxd3 {[%clk 0:00:33]} 23. Rxd3 {[%clk 0:00:35]}  Qa3+ {[%clk 0:00:33]} 24. Kb1 {[%clk 0:00:32]}  Qxa2# {[%clk 0:00:34]} 0-1

[Event "January 2 Late 2024"]
[Site "https://www.chess.com"]
[Date "2024.01.02"]
[Round "5"]
[White "Kochiev, Ivan"]
[Black "Kadric, Denis"]
[Result "0-1"]
[Board "19"]
[TimeControl "180+1"]
[WhiteFideId "2917890"]
[BlackFideId "14403803"]
[WhiteElo "2569"]
[BlackElo "2835"]
[WhiteTeam "BUL"]
[BlackTeam "MNE"]
[WhiteClock "0:00:00"]
[BlackClock "0:00:14"]

1. e4 {[%clk 0:03:00]}  d6 {[%clk 0:03:00]} 2. d4 {[%clk 0:03:00]}  Nf6 {[%clk 0:03:01]} 3. Bd3 {[%clk 0:03:01]}  e5 {[%clk 0:03:01]} 4. c3 {[%clk 0:03:01]}  Nc6 {[%clk 0:03:02]} 5. Ne2 {[%clk 0:02:51]}  g6 {[%clk 0:02:44]} 6. O-O {[%clk 0:02:50]}  Bg7 {[%clk 0:02:44]} 7. f4 {[%clk 0:02:50]}  O-O {[%clk 0:02:43]} 8. h3 {[%clk 0:02:44]}  Re8 {[%clk 0:02:39]} 9. fxe5 {[%clk 0:02:39]}  dxe5 {[%clk 0:02:39]} 10. d5 {[%clk 0:02:40]}  Nb8 {[%clk 0:02:36]} 11. c4 {[%clk 0:02:23]}  c6 {[%clk 0:02:32]} 12. Bg5 {[%clk 0:02:14]}  cxd5 {[%clk 0:02:29]} 13. cxd5 {[%clk 0:02:09]}  Nbd7 {[%clk 0:02:24]} 14. Kh1 {[%clk 0:01:57]}  Nc5 {[%clk 0:02:20]} 15. Na3 {[%clk 0:01:50]}  h6 {[%clk 0:02:13]} 16. Bxf6 {[%clk 0:01:42]}  Bxf6 {[%clk 0:02:14]} 17. Rc1 {[%clk 0:01:42]}  b6 {[%clk 0:02:09]} 18. b4 {[%clk 0:01:23]}  Nb7 {[%clk 0:01:52]} 19. Qa4 {[%clk 0:01:05]}  Nd6 {[%clk 0:01:34]} 20. Qc6 {[%clk 0:00:27]}  Bb7 {[%clk 0:01:14]} 21. Qa4 {[%clk 0:00:27]}  Bg5 {[%clk 0:01:10]} 22. Rc2 {[%clk 0:00:25]}  a6 {[%clk 0:01:01]} 23. Qb3 {[%clk 0:00:22]}  b5 {[%clk 0:01:00]} 24. Rc5 {[%clk 0:00:19]}  Be3 {[%clk 0:00:44]} 25. Bxb5 {[%clk 0:00:08]}  axb5 {[%clk 0:00:30]} 26. Qxe3 {[%clk 0:00:08]}  Qg5 {[%clk 0:00:31]} 27. Qxg5 {[%clk 0:00:06]}  hxg5 {[%clk 0:00:32]} 28. Nxb5 {[%clk 0:00:07]}  Nxe4 {[%clk 0:00:32]} 29. Nc7 {[%clk 0:00:04]}  Rxa2 {[%clk 0:00:25]} 30. Nxe8 {[%clk 0:00:04]}  Rxe2 {[%clk 0:00:25]} 31. Rc7 {[%clk 0:00:03]}  Ng3+ {[%clk 0:00:20]} 32. Kg1 {[%clk 0:00:04]}  Nxf1 {[%clk 0:00:19]} 33. Rxb7 {[%clk 0:00:04]}  Ne3 {[%clk 0:00:19]} 34. d6 {[%clk 0:00:04]}  Rxg2+ {[%clk 0:00:18]} 35. Kh1 {[%clk 0:00:04]}  Rd2 {[%clk 0:00:18]} 36. d7 {[%clk 0:00:04]}  Nf5 {[%clk 0:00:17]} 37. Nf6+ {[%clk 0:00:04]}  Kg7 {[%clk 0:00:17]} 38. Rb8 {[%clk 0:00:05]}  Kxf6 {[%clk 0:00:15]} 39. d8=Q+ {[%clk 0:00:05]}  Rxd8 {[%clk 0:00:15]} 40. Rxd8 {[%clk 0:00:06]}  Nd4 {[%clk 0:00:15]} 41. Kg2 {[%clk 0:00:06]}  Ke7 {[%clk 0:00:16]} 42. Rd5 {[%clk 0:00:05]}  Ke6 {[%clk 0:00:17]} 43. Ra5 {[%clk 0:00:05]}  e4 {[%clk 0:00:14]} 44. Kf2 {[%clk 0:00:04]}  f5 {[%clk 0:00:13]} 45. Ra6+ {[%clk 0:00:04]}  Ke5 {[%clk 0:00:14]} 46. Rxg6 {[%clk 0:00:03]}  Kf4 {[%clk 0:00:14]} 47. Rg8 {[%clk 0:00:02]}  e3+ {[%clk 0:00:15]} 48. Ke1 {[%clk 0:00:02]}  Ke4 {[%clk 0:00:14]} 49. Re8+ {[%clk 0:00:02]}  Kd3 {[%clk 0:00:15]} 50. Re7 {[%clk 0:00:01]}  f4 {[%clk 0:00:15]} 51. Re8 {[%clk 0:00:00]}  f3 {[%clk 0:00:14]} 0-1

[Event "January 2 Late 2024"]
[Site "https://www.chess.com"]
[Date "2024.01.02"]
[Round "5"]
[White "Korchmar, Vasiliy"]
[Black "Nepomniachtchi, Ian"]
[Result "0-1"]
[Board "21"]
[TimeControl "180+1"]
[WhiteFideId "24131750"]
[BlackFideId "4168119"]
[WhiteElo "2741"]
[BlackElo "3123"]
[WhiteTeam "RUS"]
[BlackTeam "RUS"]
[WhiteClock "0:00:00"]
[BlackClock "0:01:49"]

1. e4 {[%clk 0:03:00]}  c5 {[%clk 0:02:59]} 2. d4 {[%clk 0:03:01]}  d6 {[%clk 0:03:00]} 3. d5 {[%clk 0:02:59]}  Nf6 {[%clk 0:03:00]} 4. Nc3 {[%clk 0:02:58]}  g6 {[%clk 0:03:00]} 5. Bb5+ {[%clk 0:02:58]}  Nbd7 {[%clk 0:03:00]} 6. a4 {[%clk 0:02:58]}  Bg7 {[%clk 0:03:00]} 7. Nf3 {[%clk 0:02:58]}  O-O {[%clk 0:03:00]} 8. O-O {[%clk 0:02:58]}  Rb8 {[%clk 0:03:00]} 9. Re1 {[%clk 0:02:55]}  a6 {[%clk 0:02:58]} 10. Bf1 {[%clk 0:02:56]}  Re8 {[%clk 0:02:57]} 11. h3 {[%clk 0:02:44]}  Qc7 {[%clk 0:02:43]} 12. Bf4 {[%clk 0:02:30]}  c4 {[%clk 0:02:39]} 13. e5 {[%clk 0:01:53]}  Nh5 {[%clk 0:02:38]} 14. exd6 {[%clk 0:01:51]}  Qb6 {[%clk 0:02:38]} 15. Rxe7 {[%clk 0:01:46]}  Rf8 {[%clk 0:02:27]} 16. Bd2 {[%clk 0:01:13]}  Qxd6 {[%clk 0:02:26]} 17. Qe1 {[%clk 0:01:01]}  b5 {[%clk 0:02:26]} 18. axb5 {[%clk 0:01:01]}  axb5 {[%clk 0:02:27]} 19. Ra7 {[%clk 0:00:56]}  b4 {[%clk 0:02:24]} 20. Na4 {[%clk 0:00:50]}  Qxd5 {[%clk 0:02:23]} 21. Bxb4 {[%clk 0:00:41]}  Nf4 {[%clk 0:02:23]} 22. Nc3 {[%clk 0:00:23]}  Qc6 {[%clk 0:02:10]} 23. Ba3 {[%clk 0:00:22]}  Bb7 {[%clk 0:02:05]} 24. Rxd7 {[%clk 0:00:12]}  Qxd7 {[%clk 0:02:03]} 25. Bxf8 {[%clk 0:00:12]}  Rxf8 {[%clk 0:02:00]} 26. Bxc4 {[%clk 0:00:12]}  Qc6 {[%clk 0:02:00]} 27. Bb5 {[%clk 0:00:03]}  Qb6 {[%clk 0:01:58]} 28. Ra3 {[%clk 0:00:01]}  Nxh3+ {[%clk 0:01:57]} 29. Kh2 {[%clk 0:00:01]}  Bxf3 {[%clk 0:01:55]} 30. Kxh3 {[%clk 0:00:01]}  Bb7 {[%clk 0:01:50]} 31. Kh2 {[%clk 0:00:00]}  Bxc3 {[%clk 0:01:49]} 0-1

[Event "January 2 Late 2024"]
[Site "https://www.chess.com"]
[Date "2024.01.02"]
[Round "5"]
[White "Aronian, Levon"]
[Black "Msellek, Ilyass"]
[Result "1-0"]
[Board "22"]
[TimeControl "180+1"]
[WhiteFideId "13300474"]
[BlackFideId "675938"]
[WhiteElo "3103"]
[BlackElo "2739"]
[WhiteTeam "USA"]
[BlackTeam "MAR"]
[WhiteClock "0:01:24"]
[BlackClock "0:00:00"]

1. e4 {[%clk 0:03:00]}  Nf6 {[%clk 0:02:57]} 2. e5 {[%clk 0:02:59]}  Nd5 {[%clk 0:02:57]} 3. d4 {[%clk 0:02:59]}  d6 {[%clk 0:02:57]} 4. Nf3 {[%clk 0:02:59]}  g6 {[%clk 0:02:57]} 5. Bc4 {[%clk 0:02:57]}  Nb6 {[%clk 0:02:56]} 6. Bb3 {[%clk 0:02:57]}  Bg7 {[%clk 0:02:56]} 7. Qe2 {[%clk 0:02:57]}  a5 {[%clk 0:02:29]} 8. a4 {[%clk 0:02:53]}  O-O {[%clk 0:02:17]} 9. O-O {[%clk 0:02:50]}  dxe5 {[%clk 0:02:09]} 10. dxe5 {[%clk 0:02:50]}  c5 {[%clk 0:01:54]} 11. Na3 {[%clk 0:02:38]}  Nc6 {[%clk 0:01:52]} 12. Rd1 {[%clk 0:02:34]}  Qc7 {[%clk 0:01:45]} 13. Nb5 {[%clk 0:02:32]}  Qb8 {[%clk 0:01:44]} 14. e6 {[%clk 0:02:30]}  c4 {[%clk 0:01:36]} 15. exf7+ {[%clk 0:02:30]}  Rxf7 {[%clk 0:01:35]} 16. Bxc4 {[%clk 0:02:30]}  Nxc4 {[%clk 0:01:32]} 17. Qxc4 {[%clk 0:02:31]}  h6 {[%clk 0:01:12]} 18. Be3 {[%clk 0:02:29]}  Bf5 {[%clk 0:01:07]} 19. Nfd4 {[%clk 0:02:26]}  Ne5 {[%clk 0:01:06]} 20. Qc7 {[%clk 0:02:21]}  Qxc7 {[%clk 0:01:01]} 21. Nxc7 {[%clk 0:02:21]}  Rc8 {[%clk 0:01:01]} 22. Nd5 {[%clk 0:02:17]}  Nc4 {[%clk 0:00:58]} 23. b3 {[%clk 0:02:04]}  Nxe3 {[%clk 0:00:49]} 24. Nxe3 {[%clk 0:02:04]}  e5 {[%clk 0:00:39]} 25. Nb5 {[%clk 0:02:01]}  Rd7 {[%clk 0:00:27]} 26. Nd6 {[%clk 0:01:48]}  Rcd8 {[%clk 0:00:17]} 27. Ndxf5 {[%clk 0:01:47]}  Rxd1+ {[%clk 0:00:17]} 28. Rxd1 {[%clk 0:01:47]}  Rxd1+ {[%clk 0:00:17]} 29. Nxd1 {[%clk 0:01:48]}  gxf5 {[%clk 0:00:18]} 30. Ne3 {[%clk 0:01:48]}  f4 {[%clk 0:00:16]} 31. Nc4 {[%clk 0:01:49]}  b6 {[%clk 0:00:06]} 32. f3 {[%clk 0:01:47]}  Bf8 {[%clk 0:00:06]} 33. Nxe5 {[%clk 0:01:46]}  Bc5+ {[%clk 0:00:07]} 34. Kf1 {[%clk 0:01:46]}  Kg7 {[%clk 0:00:08]} 35. Ke2 {[%clk 0:01:45]}  Bg1 {[%clk 0:00:06]} 36. h3 {[%clk 0:01:35]}  Kf6 {[%clk 0:00:06]} 37. Nd3 {[%clk 0:01:28]}  Be3 {[%clk 0:00:06]} 38. g3 {[%clk 0:01:26]}  Kf5 {[%clk 0:00:06]} 39. Nxf4 {[%clk 0:01:25]}  Bd4 {[%clk 0:00:00]} 40. Ng2 {[%clk 0:01:24]} 1-0

[Event "January 2 Late 2024"]
[Site "https://www.chess.com"]
[Date "2024.01.02"]
[Round "5"]
[White "Yarar, Bora"]
[Black "Duda, Jan-Krzysztof"]
[Result "1/2-1/2"]
[Board "23"]
[TimeControl "180+1"]
[WhiteFideId "34588400"]
[BlackFideId "1170546"]
[WhiteElo "2734"]
[BlackElo "3049"]
[WhiteTeam "TUR"]
[BlackTeam "POL"]
[WhiteClock "0:00:18"]
[BlackClock "0:00:01"]

1. e4 {[%clk 0:02:58]}  e5 {[%clk 0:02:59]} 2. Nf3 {[%clk 0:02:58]}  d6 {[%clk 0:03:00]} 3. d4 {[%clk 0:02:57]}  exd4 {[%clk 0:03:01]} 4. Nxd4 {[%clk 0:02:58]}  Nf6 {[%clk 0:03:01]} 5. Nc3 {[%clk 0:02:58]}  Be7 {[%clk 0:03:02]} 6. Be2 {[%clk 0:02:59]}  O-O {[%clk 0:03:03]} 7. O-O {[%clk 0:02:59]}  Re8 {[%clk 0:03:03]} 8. f4 {[%clk 0:02:59]}  Bf8 {[%clk 0:03:03]} 9. Bf3 {[%clk 0:02:59]}  c6 {[%clk 0:03:03]} 10. a4 {[%clk 0:02:58]}  a5 {[%clk 0:02:59]} 11. h3 {[%clk 0:02:57]}  Na6 {[%clk 0:02:59]} 12. b3 {[%clk 0:02:52]}  g6 {[%clk 0:02:54]} 13. Bb2 {[%clk 0:02:51]}  Bg7 {[%clk 0:02:51]} 14. Re1 {[%clk 0:02:51]}  Qc7 {[%clk 0:02:49]} 15. Qd2 {[%clk 0:02:50]}  Bd7 {[%clk 0:02:47]} 16. Rad1 {[%clk 0:02:49]}  Rad8 {[%clk 0:02:48]} 17. Kh1 {[%clk 0:02:48]}  Bc8 {[%clk 0:02:48]} 18. Qf2 {[%clk 0:02:40]}  Nb4 {[%clk 0:02:44]} 19. g4 {[%clk 0:02:33]}  d5 {[%clk 0:02:30]} 20. e5 {[%clk 0:02:31]}  Nd7 {[%clk 0:02:31]} 21. e6 {[%clk 0:02:17]}  fxe6 {[%clk 0:02:16]} 22. Nxe6 {[%clk 0:02:15]}  Rxe6 {[%clk 0:02:17]} 23. Rxe6 {[%clk 0:02:15]}  Qxf4 {[%clk 0:02:17]} 24. Re7 {[%clk 0:01:55]}  Qf6 {[%clk 0:01:46]} 25. Rde1 {[%clk 0:01:46]}  Rf8 {[%clk 0:01:42]} 26. Kg2 {[%clk 0:01:43]}  Nxc2 {[%clk 0:01:41]} 27. R1e6 {[%clk 0:01:40]}  Qxf3+ {[%clk 0:01:18]} 28. Qxf3 {[%clk 0:01:38]}  Rxf3 {[%clk 0:01:19]} 29. Kxf3 {[%clk 0:00:56]}  Nd4+ {[%clk 0:01:18]} 30. Kg2 {[%clk 0:00:56]}  Nxe6 {[%clk 0:01:19]} 31. Rxe6 {[%clk 0:00:56]}  Kf7 {[%clk 0:01:19]} 32. Re2 {[%clk 0:00:57]}  Nc5 {[%clk 0:01:18]} 33. Rf2+ {[%clk 0:00:55]}  Kg8 {[%clk 0:01:15]} 34. Re2 {[%clk 0:00:56]}  Bd7 {[%clk 0:00:55]} 35. Nd1 {[%clk 0:00:51]}  d4 {[%clk 0:00:51]} 36. Ba3 {[%clk 0:00:47]}  Ne6 {[%clk 0:00:48]} 37. Kg1 {[%clk 0:00:39]}  d3 {[%clk 0:00:31]} 38. Rd2 {[%clk 0:00:36]}  Nf4 {[%clk 0:00:31]} 39. Bb2 {[%clk 0:00:35]}  Bh6 {[%clk 0:00:29]} 40. Kh2 {[%clk 0:00:30]}  Nxh3 {[%clk 0:00:24]} 41. Rxd3 {[%clk 0:00:28]}  Bxg4 {[%clk 0:00:24]} 42. Rd8+ {[%clk 0:00:28]}  Kf7 {[%clk 0:00:24]} 43. Be5 {[%clk 0:00:22]}  Ng5 {[%clk 0:00:20]} 44. Kg3 {[%clk 0:00:21]}  Be6 {[%clk 0:00:16]} 45. Nf2 {[%clk 0:00:17]}  Bxb3 {[%clk 0:00:10]} 46. Rd7+ {[%clk 0:00:17]}  Ke6 {[%clk 0:00:10]} 47. Rxb7 {[%clk 0:00:18]}  Kxe5 {[%clk 0:00:04]} 48. Rxb3 {[%clk 0:00:18]}  Bf8 {[%clk 0:00:04]} 49. Rb7 {[%clk 0:00:15]}  Bd6 {[%clk 0:00:05]} 50. Kg4 {[%clk 0:00:15]}  Kf6 {[%clk 0:00:05]} 51. Nd3 {[%clk 0:00:13]}  h5+ {[%clk 0:00:05]} 52. Kh4 {[%clk 0:00:14]}  Nf3+ {[%clk 0:00:05]} 53. Kh3 {[%clk 0:00:14]}  g5 {[%clk 0:00:06]} 54. Kg2 {[%clk 0:00:15]}  g4 {[%clk 0:00:06]} 55. Rb6 {[%clk 0:00:15]}  Nd4 {[%clk 0:00:06]} 56. Nf2 {[%clk 0:00:15]}  Kf5 {[%clk 0:00:06]} 57. Rb7 {[%clk 0:00:14]}  h4 {[%clk 0:00:06]} 58. Rf7+ {[%clk 0:00:15]}  Kg6 {[%clk 0:00:06]} 59. Rd7 {[%clk 0:00:15]}  h3+ {[%clk 0:00:06]} 60. Kf1 {[%clk 0:00:15]}  Be5 {[%clk 0:00:04]} 61. Nxg4 {[%clk 0:00:16]}  Kf5 {[%clk 0:00:04]} 62. Nxe5 {[%clk 0:00:16]}  Kxe5 {[%clk 0:00:05]} 63. Rh7 {[%clk 0:00:16]}  Kd5 {[%clk 0:00:05]} 64. Rxh3 {[%clk 0:00:17]}  Kc4 {[%clk 0:00:06]} 65. Rh5 {[%clk 0:00:18]}  Kb4 {[%clk 0:00:06]} 66. Rh4 {[%clk 0:00:18]}  c5 {[%clk 0:00:06]} 67. Ke1 {[%clk 0:00:19]}  Kxa4 {[%clk 0:00:07]} 68. Kd2 {[%clk 0:00:19]}  Kb4 {[%clk 0:00:07]} 69. Kd3 {[%clk 0:00:20]}  a4 {[%clk 0:00:07]} 70. Rh8 {[%clk 0:00:20]}  Nb5 {[%clk 0:00:08]} 71. Rh1 {[%clk 0:00:20]}  c4+ {[%clk 0:00:07]} 72. Kc2 {[%clk 0:00:20]}  Nd4+ {[%clk 0:00:08]} 73. Kb2 {[%clk 0:00:20]}  c3+ {[%clk 0:00:07]} 74. Ka2 {[%clk 0:00:21]}  Kc4 {[%clk 0:00:08]} 75. Rh8 {[%clk 0:00:21]}  Nb3 {[%clk 0:00:07]} 76. Rc8+ {[%clk 0:00:21]}  Nc5 {[%clk 0:00:08]} 77. Ka3 {[%clk 0:00:19]}  Kd4 {[%clk 0:00:08]} 78. Kb4 {[%clk 0:00:18]}  a3 {[%clk 0:00:02]} 79. Kxa3 {[%clk 0:00:18]}  Kc4 {[%clk 0:00:02]} 80. Rc7 {[%clk 0:00:18]}  Kd4 {[%clk 0:00:02]} 81. Rc8 {[%clk 0:00:19]}  Kc4 {[%clk 0:00:02]} 82. Rc7 {[%clk 0:00:19]}  Kb5 {[%clk 0:00:02]} 83. Rc8 {[%clk 0:00:18]}  Kc4 {[%clk 0:00:01]} 1/2-1/2

[Event "January 2 Late 2024"]
[Site "https://www.chess.com"]
[Date "2024.01.02"]
[Round "5"]
[White "Oparin, Grigoriy"]
[Black "Koellner, Ruben Gideon"]
[Result "1-0"]
[Board "24"]
[TimeControl "180+1"]
[WhiteFideId "24125890"]
[BlackFideId "12993093"]
[WhiteElo "3043"]
[BlackElo "2726"]
[WhiteTeam "USA"]
[BlackTeam "GER"]
[WhiteClock "0:00:33"]
[BlackClock "0:00:02"]

1. c4 {[%clk 0:03:00]}  a6 {[%clk 0:02:52]} 2. Nc3 {[%clk 0:02:58]}  e6 {[%clk 0:02:46]} 3. e4 {[%clk 0:02:58]}  c5 {[%clk 0:02:45]} 4. Nf3 {[%clk 0:02:57]}  Nc6 {[%clk 0:02:44]} 5. d4 {[%clk 0:02:56]}  cxd4 {[%clk 0:02:43]} 6. Nxd4 {[%clk 0:02:57]}  Qc7 {[%clk 0:02:40]} 7. Be2 {[%clk 0:02:52]}  Nf6 {[%clk 0:02:38]} 8. O-O {[%clk 0:02:49]}  Bd6 {[%clk 0:02:36]} 9. h3 {[%clk 0:02:44]}  Be5 {[%clk 0:02:26]} 10. Nxc6 {[%clk 0:02:42]}  dxc6 {[%clk 0:02:19]} 11. Qd3 {[%clk 0:02:42]}  c5 {[%clk 0:02:17]} 12. f4 {[%clk 0:02:38]}  Bd4+ {[%clk 0:02:17]} 13. Be3 {[%clk 0:02:39]}  Bxe3+ {[%clk 0:02:06]} 14. Qxe3 {[%clk 0:02:40]}  O-O {[%clk 0:02:03]} 15. e5 {[%clk 0:02:40]}  Nd7 {[%clk 0:01:57]} 16. Rad1 {[%clk 0:02:39]}  Nb8 {[%clk 0:01:44]} 17. Ne4 {[%clk 0:02:36]}  b6 {[%clk 0:01:43]} 18. Ng5 {[%clk 0:02:30]}  Bb7 {[%clk 0:01:36]} 19. Qd3 {[%clk 0:02:26]}  g6 {[%clk 0:01:34]} 20. Qd6 {[%clk 0:02:11]}  Rc8 {[%clk 0:01:23]} 21. Bg4 {[%clk 0:01:48]}  Qxd6 {[%clk 0:00:43]} 22. Rxd6 {[%clk 0:01:49]}  Nc6 {[%clk 0:00:41]} 23. Nxf7 {[%clk 0:01:41]}  Kxf7 {[%clk 0:00:35]} 24. Rd7+ {[%clk 0:01:42]}  Kf8 {[%clk 0:00:31]} 25. Rxb7 {[%clk 0:01:43]}  Nd4 {[%clk 0:00:30]} 26. Rxh7 {[%clk 0:01:34]}  Kg8 {[%clk 0:00:29]} 27. Rd7 {[%clk 0:01:27]}  Rd8 {[%clk 0:00:29]} 28. Rb7 {[%clk 0:01:25]}  Rab8 {[%clk 0:00:28]} 29. Ra7 {[%clk 0:01:23]}  Ra8 {[%clk 0:00:28]} 30. Rxa8 {[%clk 0:01:23]}  Rxa8 {[%clk 0:00:29]} 31. Rd1 {[%clk 0:01:20]}  a5 {[%clk 0:00:25]} 32. Kf2 {[%clk 0:01:19]}  a4 {[%clk 0:00:24]} 33. Ke3 {[%clk 0:01:18]}  a3 {[%clk 0:00:22]} 34. b3 {[%clk 0:01:17]}  Kf7 {[%clk 0:00:21]} 35. Bf3 {[%clk 0:01:10]}  Rd8 {[%clk 0:00:19]} 36. Kf2 {[%clk 0:00:54]}  Ke7 {[%clk 0:00:18]} 37. Be4 {[%clk 0:00:53]}  Rf8 {[%clk 0:00:17]} 38. Ke3 {[%clk 0:00:54]}  Rg8 {[%clk 0:00:15]} 39. h4 {[%clk 0:00:48]}  Kf7 {[%clk 0:00:12]} 40. Rh1 {[%clk 0:00:46]}  Rh8 {[%clk 0:00:11]} 41. g4 {[%clk 0:00:45]}  Kg7 {[%clk 0:00:06]} 42. b4 {[%clk 0:00:37]}  Rd8 {[%clk 0:00:03]} 43. bxc5 {[%clk 0:00:37]}  bxc5 {[%clk 0:00:03]} 44. Rb1 {[%clk 0:00:37]}  Rd7 {[%clk 0:00:03]} 45. Rb6 {[%clk 0:00:34]}  Kf7 {[%clk 0:00:02]} 46. Ra6 {[%clk 0:00:31]}  Rd8 {[%clk 0:00:01]} 47. Rxa3 {[%clk 0:00:31]}  Rb8 {[%clk 0:00:02]} 48. Ra7+ {[%clk 0:00:32]}  Kg8 {[%clk 0:00:02]} 49. Ra8 {[%clk 0:00:32]}  Rxa8 {[%clk 0:00:02]} 50. Bxa8 {[%clk 0:00:33]}  Kf7 {[%clk 0:00:03]} 51. Be4 {[%clk 0:00:33]}  Ke7 {[%clk 0:00:02]} 52. a4 {[%clk 0:00:33]} 1-0